[Event "*** Titled Tuesday Blitz"]
[Site "Chess.com"]
[Date "2019.03.05"]
[Round "1"]
[White "yoolund"]
[Black "LaughingTiger"]
[Result "1/2-1/2"]
[WhiteElo "2515"]
[BlackElo "2148"]
[TimeControl "180+2"]
[EndTime "13:05:32 PST"]
[Termination "Game drawn by agreement"]

1. b3 {[%clk 0:03:01.9]} 1... e5 {[%clk 0:03:00.3]} 2. Bb2 {[%clk 0:03:03]} 2...
Nc6 {[%clk 0:03:01.9]} 3. e3 {[%clk 0:03:03.6]} 3... Nf6 {[%clk 0:03:03.2]} 4.
Nf3 {[%clk 0:03:04.9]} 4... e4 {[%clk 0:03:03.2]} 5. Nd4 {[%clk 0:03:06.2]} 5...
Nxd4 {[%clk 0:03:03.7]} 6. Bxd4 {[%clk 0:03:08.1]} 6... c5 {[%clk 0:03:04.8]} 7.
Bb2 {[%clk 0:03:09.4]} 7... d5 {[%clk 0:03:05.6]} 8. d3 {[%clk 0:03:10.8]} 8...
Bf5 {[%clk 0:02:57.2]} 9. Nd2 {[%clk 0:03:11.8]} 9... Be7 {[%clk 0:02:56.6]} 10.
Be2 {[%clk 0:03:12.3]} 10... O-O {[%clk 0:02:57.2]} 11. O-O {[%clk 0:03:13.5]}
11... d4 {[%clk 0:02:46.2]} 12. exd4 {[%clk 0:03:12.4]} 12... cxd4 {[%clk
0:02:44.4]} 13. dxe4 {[%clk 0:03:12.7]} 13... Nxe4 {[%clk 0:02:46.3]} 14. Nxe4
{[%clk 0:03:14.1]} 14... Bxe4 {[%clk 0:02:48.2]} 15. Bf3 {[%clk 0:03:09.4]}
15... Bxf3 {[%clk 0:02:44.4]} 16. Qxf3 {[%clk 0:03:11.3]} 16... Rc8 {[%clk
0:02:42.8]} 17. Rac1 {[%clk 0:03:10]} 17... Bg5 {[%clk 0:02:39.2]} 18. Rcd1
{[%clk 0:03:10]} 18... Bf6 {[%clk 0:02:34]} 19. Rd2 {[%clk 0:03:09.1]} 19... Qb6
{[%clk 0:02:33.4]} 20. Rfd1 {[%clk 0:03:08]} 20... Rfd8 {[%clk 0:02:34.6]} 21.
g3 {[%clk 0:03:02.3]} 21... h6 {[%clk 0:02:27.4]} 22. h4 {[%clk 0:02:57.6]}
22... a5 {[%clk 0:02:26.7]} 23. a4 {[%clk 0:02:58.1]} 23... Qb4 {[%clk
0:02:21.3]} 24. Qf4 {[%clk 0:02:52]} 24... Qd6 {[%clk 0:01:55.4]} 25. Qxd6
{[%clk 0:02:41.1]} 25... Rxd6 {[%clk 0:01:57.3]} 26. Bxd4 {[%clk 0:02:35.3]}
26... Bxd4 {[%clk 0:01:47.7]} 27. Rxd4 {[%clk 0:02:37.2]} 27... Rxd4 {[%clk
0:01:48.4]} 28. Rxd4 {[%clk 0:02:39.1]} 28... Rxc2 {[%clk 0:01:50.3]} 29. Rd7
{[%clk 0:02:40.3]} 29... b5 {[%clk 0:01:40.4]} 30. Rd8+ {[%clk 0:02:28.1]} 30...
Kh7 {[%clk 0:01:40.3]} 31. Rd5 {[%clk 0:02:19.2]} 31... b4 {[%clk 0:01:37.4]}
32. Rxa5 {[%clk 0:02:13.6]} 32... Rc3 {[%clk 0:01:38.1]} 33. Rb5 {[%clk
0:01:51.7]} 33... Rxb3 {[%clk 0:01:38.7]} 34. a5 {[%clk 0:01:53.1]} 34... Ra3
{[%clk 0:01:38.3]} 35. Rxb4 {[%clk 0:01:47.9]} 35... Rxa5 {[%clk 0:01:39.1]} 36.
Kg2 {[%clk 0:01:49.6]} 36... Rf5 {[%clk 0:01:39.4]} 37. Rc4 {[%clk 0:01:50.2]}
37... Rf6 {[%clk 0:01:40.5]} 38. Rd4 {[%clk 0:01:50]} 1/2-1/2

[Event "*** Titled Tuesday Blitz"]
[Site "Chess.com"]
[Date "2019.03.05"]
[Round "1"]
[White "Marcus_Harvey"]
[Black "017290"]
[Result "1-0"]
[WhiteElo "2589"]
[BlackElo "2229"]
[TimeControl "180+2"]
[EndTime "13:05:37 PST"]
[Termination "Marcus_Harvey won by resignation"]

1. Nf3 {[%clk 0:02:41.1]} 1... Nf6 {[%clk 0:02:59.6]} 2. b3 {[%clk 0:02:40.5]}
2... d6 {[%clk 0:02:59.1]} 3. Bb2 {[%clk 0:02:42]} 3... e5 {[%clk 0:03:00]} 4.
e3 {[%clk 0:02:43.5]} 4... Bg4 {[%clk 0:02:59.2]} 5. Be2 {[%clk 0:02:43.9]} 5...
Nbd7 {[%clk 0:02:59.5]} 6. O-O {[%clk 0:02:44.8]} 6... g6 {[%clk 0:02:59.8]} 7.
d4 {[%clk 0:02:45.4]} 7... exd4 {[%clk 0:02:59.8]} 8. Nxd4 {[%clk 0:02:45.2]}
8... Bxe2 {[%clk 0:02:59.9]} 9. Nxe2 {[%clk 0:02:43.7]} 9... Bg7 {[%clk
0:03:01.1]} 10. Nd2 {[%clk 0:02:44]} 10... O-O {[%clk 0:02:59.7]} 11. c4 {[%clk
0:02:44.9]} 11... Nc5 {[%clk 0:02:53.9]} 12. Qc2 {[%clk 0:02:42.3]} 12... Re8
{[%clk 0:02:53.6]} 13. Ng3 {[%clk 0:02:37.6]} 13... a5 {[%clk 0:02:52.7]} 14. a3
{[%clk 0:02:37.8]} 14... h5 {[%clk 0:02:49.6]} 15. b4 {[%clk 0:02:39]} 15... Ne6
{[%clk 0:02:47.6]} 16. Nge4 {[%clk 0:02:35.9]} 16... Nxe4 {[%clk 0:02:39.2]} 17.
Nxe4 {[%clk 0:02:36.7]} 17... Ng5 {[%clk 0:02:35.6]} 18. Bxg7 {[%clk 0:02:31.5]}
18... Nxe4 {[%clk 0:02:23.6]} 19. Bb2 {[%clk 0:02:30.6]} 19... Qh4 {[%clk
0:02:19.3]} 20. f3 {[%clk 0:02:29.9]} 20... Nf6 {[%clk 0:02:15.2]} 21. Qc3
{[%clk 0:02:29.9]} 21... Re6 {[%clk 0:02:15.8]} 22. e4 {[%clk 0:02:23.8]} 22...
Qf4 {[%clk 0:02:12.6]} 23. g3 {[%clk 0:02:22.3]} 23... Qe5 {[%clk 0:02:12.8]}
24. Qd2 {[%clk 0:02:21.4]} 24... Nxe4 {[%clk 0:02:07.6]} 25. fxe4 {[%clk
0:02:22.4]} 25... Qxe4 {[%clk 0:02:08.3]} 26. Rae1 {[%clk 0:02:00.4]} 26... Qxc4
{[%clk 0:02:06.2]} 27. Qh6 {[%clk 0:02:00.8]} 1-0

[Event "*** Titled Tuesday Blitz"]
[Site "Chess.com"]
[Date "2019.03.05"]
[Round "1"]
[White "W_Amadeus"]
[Black "fyall777"]
[Result "0-1"]
[WhiteElo "2639"]
[BlackElo "2315"]
[TimeControl "180+2"]
[EndTime "13:05:53 PST"]
[Termination "fyall777 won by resignation"]

1. e4 {[%clk 0:03:01.9]} 1... d5 {[%clk 0:03:00.2]} 2. exd5 {[%clk 0:03:02.6]}
2... Qxd5 {[%clk 0:02:59.7]} 3. Nc3 {[%clk 0:03:03.3]} 3... Qd6 {[%clk
0:03:00.7]} 4. d4 {[%clk 0:02:59.6]} 4... Nf6 {[%clk 0:03:01.6]} 5. Nf3 {[%clk
0:03:00.6]} 5... Bg4 {[%clk 0:02:59]} 6. h3 {[%clk 0:02:46.6]} 6... Bxf3 {[%clk
0:02:58.5]} 7. Qxf3 {[%clk 0:02:48.5]} 7... c6 {[%clk 0:02:57.2]} 8. Be3 {[%clk
0:02:14.7]} 8... e6 {[%clk 0:02:56.5]} 9. O-O-O {[%clk 0:02:14.3]} 9... Nbd7
{[%clk 0:02:57.9]} 10. Kb1 {[%clk 0:02:03.7]} 10... Be7 {[%clk 0:02:57.7]} 11.
g4 {[%clk 0:02:02.9]} 11... Nd5 {[%clk 0:02:48.4]} 12. Ne4 {[%clk 0:02:01.8]}
12... Qb4 {[%clk 0:02:48]} 13. c4 {[%clk 0:01:48.7]} 13... Nxe3 {[%clk
0:02:44.2]} 14. fxe3 {[%clk 0:01:44.9]} 14... Nf6 {[%clk 0:02:28.4]} 15. Nxf6+
{[%clk 0:01:38.9]} 15... Bxf6 {[%clk 0:02:27.5]} 16. h4 {[%clk 0:01:40.3]} 16...
h6 {[%clk 0:02:12.3]} 17. g5 {[%clk 0:01:37.4]} 17... hxg5 {[%clk 0:02:09.2]}
18. hxg5 {[%clk 0:01:33.4]} 18... Rxh1 {[%clk 0:02:10.6]} 19. Qxh1 {[%clk
0:01:17]} 19... Bxg5 {[%clk 0:02:10.7]} 20. d5 {[%clk 0:01:18.4]} 20... O-O-O
{[%clk 0:02:05.9]} 21. Bh3 {[%clk 0:00:43.6]} 21... Bf6 {[%clk 0:02:01.4]} 22.
Qh2 {[%clk 0:00:44.2]} 22... Qxc4 {[%clk 0:01:57.9]} 23. Qc2 {[%clk 0:00:37.7]}
23... Qxc2+ {[%clk 0:01:56.9]} 24. Kxc2 {[%clk 0:00:39.6]} 24... cxd5 {[%clk
0:01:56]} 25. b3 {[%clk 0:00:38.6]} 25... Kc7 {[%clk 0:01:56.2]} 26. Kd3 {[%clk
0:00:39.5]} 26... Rh8 {[%clk 0:01:56.3]} 27. Rh1 {[%clk 0:00:40.4]} 27... Kd6
{[%clk 0:01:56.7]} 28. Bg2 {[%clk 0:00:41]} 28... Rxh1 {[%clk 0:01:52.8]} 29.
Bxh1 {[%clk 0:00:42.9]} 29... Bb2 {[%clk 0:01:47.3]} 30. e4 {[%clk 0:00:44]}
30... dxe4+ {[%clk 0:01:47.1]} 31. Bxe4 {[%clk 0:00:45.9]} 31... b6 {[%clk
0:01:46.8]} 0-1

[Event "*** Titled Tuesday Blitz"]
[Site "Chess.com"]
[Date "2019.03.05"]
[Round "1"]
[White "Bauxi435"]
[Black "Jospem"]
[Result "0-1"]
[WhiteElo "2428"]
[BlackElo "2882"]
[TimeControl "180+2"]
[EndTime "13:06:22 PST"]
[Termination "Jospem won by resignation"]

1. d4 {[%clk 0:03:01]} 1... Nf6 {[%clk 0:03:01.2]} 2. c4 {[%clk 0:03:01.6]} 2...
e6 {[%clk 0:03:02.6]} 3. Nc3 {[%clk 0:03:02.4]} 3... Bb4 {[%clk 0:03:04.2]} 4.
f3 {[%clk 0:03:01]} 4... c5 {[%clk 0:03:03.3]} 5. d5 {[%clk 0:03:01]} 5... d6
{[%clk 0:03:04.8]} 6. e4 {[%clk 0:02:59.8]} 6... O-O {[%clk 0:03:06.1]} 7. Bd3
{[%clk 0:02:57.8]} 7... a6 {[%clk 0:03:02.7]} 8. Ne2 {[%clk 0:02:55.5]} 8...
exd5 {[%clk 0:02:56.7]} 9. cxd5 {[%clk 0:02:52.6]} 9... b5 {[%clk 0:02:57.8]}
10. O-O {[%clk 0:02:49]} 10... Nbd7 {[%clk 0:02:59]} 11. Bf4 {[%clk 0:02:47.2]}
11... Qc7 {[%clk 0:02:46.4]} 12. Kh1 {[%clk 0:02:45.6]} 12... Re8 {[%clk
0:02:47.5]} 13. Rc1 {[%clk 0:02:42.9]} 13... Nf8 {[%clk 0:02:45.1]} 14. Bb1
{[%clk 0:02:38.3]} 14... Ng6 {[%clk 0:02:45.7]} 15. Bg3 {[%clk 0:02:39.1]} 15...
Qe7 {[%clk 0:02:40.8]} 16. Nf4 {[%clk 0:02:32.8]} 16... Nxf4 {[%clk 0:02:36.9]}
17. Bxf4 {[%clk 0:02:33.5]} 17... Nd7 {[%clk 0:02:35.5]} 18. Ne2 {[%clk
0:02:16.5]} 18... Qf6 {[%clk 0:02:34.1]} 19. Bg3 {[%clk 0:02:14.9]} 19... Ne5
{[%clk 0:02:28.3]} 20. a3 {[%clk 0:02:11.2]} 20... Ba5 {[%clk 0:02:29]} 21. b3
{[%clk 0:02:09.7]} 21... Ng6 {[%clk 0:02:24.5]} 22. f4 {[%clk 0:02:00.2]} 22...
Bg4 {[%clk 0:02:02.3]} 23. Qc2 {[%clk 0:01:54.3]} 23... Rad8 {[%clk 0:01:40.4]}
24. Ng1 {[%clk 0:01:44.6]} 24... Bc8 {[%clk 0:00:58.2]} 25. Nf3 {[%clk
0:01:39.2]} 25... Bg4 {[%clk 0:00:54.6]} 26. Bh4 {[%clk 0:01:39.7]} 26... Nxh4
{[%clk 0:00:54.2]} 27. e5 {[%clk 0:01:35.1]} 27... Qh6 {[%clk 0:00:55.1]} 28.
Ng5 {[%clk 0:01:31.1]} 28... Bf5 {[%clk 0:00:56.2]} 29. Qf2 {[%clk 0:01:30.1]}
29... Bxb1 {[%clk 0:00:57.7]} 30. Rxb1 {[%clk 0:01:31.7]} 30... dxe5 {[%clk
0:00:53.7]} 31. Qxc5 {[%clk 0:01:31.2]} 31... exf4 {[%clk 0:00:50.7]} 32. Nh3
{[%clk 0:01:30.3]} 32... f3 {[%clk 0:00:51.2]} 33. g3 {[%clk 0:01:29.8]} 33...
Nf5 {[%clk 0:00:51.3]} 34. Nf4 {[%clk 0:01:28.9]} 34... Nxg3+ {[%clk 0:00:52]}
35. Kg1 {[%clk 0:01:28.9]} 35... Bb6 {[%clk 0:00:53.4]} 0-1

[Event "*** Titled Tuesday Blitz"]
[Site "Chess.com"]
[Date "2019.03.05"]
[Round "1"]
[White "Zq1"]
[Black "dopolian"]
[Result "1/2-1/2"]
[WhiteElo "2526"]
[BlackElo "2160"]
[TimeControl "180+2"]
[EndTime "13:06:26 PST"]
[Termination "Game drawn by agreement"]

1. d4 {[%clk 0:02:56.4]} 1... Nf6 {[%clk 0:03:01]} 2. c4 {[%clk 0:02:56.8]} 2...
c5 {[%clk 0:03:02.1]} 3. Nf3 {[%clk 0:02:56.2]} 3... cxd4 {[%clk 0:03:02.9]} 4.
Nxd4 {[%clk 0:02:57.1]} 4... e5 {[%clk 0:03:04.3]} 5. Nb5 {[%clk 0:02:57.5]}
5... d5 {[%clk 0:03:05.6]} 6. cxd5 {[%clk 0:02:57.8]} 6... Bc5 {[%clk
0:03:06.8]} 7. N5c3 {[%clk 0:02:58.4]} 7... O-O {[%clk 0:03:07.3]} 8. g3 {[%clk
0:02:57.8]} 8... e4 {[%clk 0:03:07.6]} 9. Bg2 {[%clk 0:02:57.3]} 9... Re8 {[%clk
0:03:02.7]} 10. O-O {[%clk 0:02:57.8]} 10... Bf5 {[%clk 0:03:00.8]} 11. Bg5
{[%clk 0:02:56.9]} 11... h6 {[%clk 0:03:01.1]} 12. Bxf6 {[%clk 0:02:57.5]} 12...
Qxf6 {[%clk 0:03:03]} 13. e3 {[%clk 0:02:55.6]} 13... Nd7 {[%clk 0:02:54.9]} 14.
Nd2 {[%clk 0:02:55.4]} 14... Qg6 {[%clk 0:02:54.3]} 15. Nb3 {[%clk 0:02:43.9]}
15... Bd6 {[%clk 0:02:47.9]} 16. Nd4 {[%clk 0:02:44.5]} 16... Rac8 {[%clk
0:02:32.6]} 17. Nxf5 {[%clk 0:02:42.7]} 17... Qxf5 {[%clk 0:02:33.9]} 18. Qd4
{[%clk 0:02:40.5]} 18... Nf6 {[%clk 0:02:30]} 19. Rac1 {[%clk 0:02:37.7]} 19...
a6 {[%clk 0:02:24.2]} 20. Nxe4 {[%clk 0:02:27.2]} 20... Rxc1 {[%clk 0:02:06]}
21. Nxf6+ {[%clk 0:02:27.2]} 21... Qxf6 {[%clk 0:02:07.3]} 22. Rxc1 {[%clk
0:02:27]} 22... Qxd4 {[%clk 0:02:08.1]} 23. exd4 {[%clk 0:02:28.6]} 23... Bb4
{[%clk 0:02:08.7]} 24. Kf1 {[%clk 0:02:24.2]} 24... Kf8 {[%clk 0:02:06.3]} 25.
a3 {[%clk 0:02:10.8]} 25... Bd2 {[%clk 0:02:02.6]} 26. Rd1 {[%clk 0:02:10.6]}
26... Ba5 {[%clk 0:02:00.9]} 27. d6 {[%clk 0:02:06.9]} 27... Rd8 {[%clk
0:02:00.3]} 28. Bxb7 {[%clk 0:02:05.8]} 28... Rxd6 {[%clk 0:02:01.3]} 29. d5
{[%clk 0:02:04.4]} 29... Rb6 {[%clk 0:02:00]} 30. Bc6 {[%clk 0:01:44.7]} 30...
Rxb2 {[%clk 0:01:57.7]} 31. d6 {[%clk 0:01:45.5]} 31... Rd2 {[%clk 0:01:56.8]}
32. Rxd2 {[%clk 0:01:43.6]} 32... Bxd2 {[%clk 0:01:57.3]} 33. Ke2 {[%clk
0:01:34.1]} 33... Bc1 {[%clk 0:01:58]} 34. a4 {[%clk 0:01:33.9]} 34... Ba3
{[%clk 0:01:57.6]} 35. d7 {[%clk 0:01:34.4]} 35... Ke7 {[%clk 0:01:58]} 36. Kd3
{[%clk 0:01:35.7]} 36... a5 {[%clk 0:01:57.8]} 37. f4 {[%clk 0:01:36]} 37... Bc5
{[%clk 0:01:57.8]} 38. Ke4 {[%clk 0:01:36.8]} 38... Bg1 {[%clk 0:01:58.5]} 39.
h4 {[%clk 0:01:36.8]} 39... Bf2 {[%clk 0:01:57.5]} 40. Kf3 {[%clk 0:01:36.3]}
40... Be1 {[%clk 0:01:57.5]} 41. h5 {[%clk 0:01:37.4]} 41... g6 {[%clk
0:01:50.6]} 42. hxg6 {[%clk 0:01:32.4]} 42... fxg6 {[%clk 0:01:52.5]} 43. g4
{[%clk 0:01:25]} 43... Bd2 {[%clk 0:01:48.5]} 44. Be4 {[%clk 0:01:16.8]} 44...
g5 {[%clk 0:01:39.7]} 45. fxg5 {[%clk 0:01:15]} 1/2-1/2

[Event "*** Titled Tuesday Blitz"]
[Site "Chess.com"]
[Date "2019.03.05"]
[Round "1"]
[White "MikaelyanArman"]
[Black "Gentlejimmy7"]
[Result "1/2-1/2"]
[WhiteElo "2723"]
[BlackElo "2369"]
[TimeControl "180+2"]
[EndTime "13:06:27 PST"]
[Termination "Game drawn by repetition"]

1. e4 {[%clk 0:03:01.9]} 1... e5 {[%clk 0:02:52.6]} 2. Nc3 {[%clk 0:03:01.7]}
2... Nf6 {[%clk 0:02:49.8]} 3. Bc4 {[%clk 0:03:02.3]} 3... Bb4 {[%clk
0:02:22.1]} 4. Nge2 {[%clk 0:02:56.2]} 4... Nc6 {[%clk 0:02:04.8]} 5. d3 {[%clk
0:02:53.6]} 5... d6 {[%clk 0:02:04.3]} 6. O-O {[%clk 0:02:53.9]} 6... Bg4 {[%clk
0:02:02.6]} 7. h3 {[%clk 0:02:48.9]} 7... Bxc3 {[%clk 0:02:02.3]} 8. bxc3 {[%clk
0:02:47.4]} 8... Be6 {[%clk 0:01:55.4]} 9. Bxe6 {[%clk 0:02:37]} 9... fxe6
{[%clk 0:01:56]} 10. f4 {[%clk 0:02:38.9]} 10... exf4 {[%clk 0:01:57.2]} 11.
Bxf4 {[%clk 0:02:27]} 11... Qd7 {[%clk 0:01:56.2]} 12. Rb1 {[%clk 0:02:25.6]}
12... O-O-O {[%clk 0:01:54.5]} 13. Qc1 {[%clk 0:02:21.2]} 13... e5 {[%clk
0:01:53.6]} 14. Be3 {[%clk 0:02:21.5]} 14... b6 {[%clk 0:01:54.2]} 15. c4 {[%clk
0:02:13.8]} 15... Rhf8 {[%clk 0:01:48.4]} 16. a4 {[%clk 0:02:14.6]} 16... Nh5
{[%clk 0:01:49.3]} 17. Qa3 {[%clk 0:02:10.4]} 17... Rxf1+ {[%clk 0:01:44.9]} 18.
Rxf1 {[%clk 0:02:12.3]} 18... Qe7 {[%clk 0:01:34.7]} 19. Nc3 {[%clk 0:01:58]}
19... Rf8 {[%clk 0:01:34.5]} 20. Rxf8+ {[%clk 0:01:51]} 20... Qxf8 {[%clk
0:01:34.7]} 21. Kh2 {[%clk 0:01:44.9]} 21... Qf1 {[%clk 0:01:32.6]} 22. a5
{[%clk 0:01:37.3]} 22... Qe1 {[%clk 0:01:13.2]} 23. Nd5 {[%clk 0:01:33.3]} 23...
Qg3+ {[%clk 0:01:10.7]} 24. Kg1 {[%clk 0:01:25.9]} 24... Qe1+ {[%clk 0:01:09.6]}
25. Kh2 {[%clk 0:01:26.8]} 25... Qg3+ {[%clk 0:01:10.7]} 26. Kg1 {[%clk
0:01:22.9]} 26... Qe1+ {[%clk 0:00:37.8]} 27. Kh2 {[%clk 0:01:22]} 1/2-1/2

[Event "*** Titled Tuesday Blitz"]
[Site "Chess.com"]
[Date "2019.03.05"]
[Round "1"]
[White "Ibraev_Vasilj"]
[Black "LawrenceTrent"]
[Result "0-1"]
[WhiteElo "2143"]
[BlackElo "2530"]
[TimeControl "180+2"]
[EndTime "13:06:32 PST"]
[Termination "LawrenceTrent won by resignation"]

1. d4 {[%clk 0:02:52.1]} 1... d5 {[%clk 0:03:00.9]} 2. Nf3 {[%clk 0:02:51.7]}
2... Nf6 {[%clk 0:03:00.9]} 3. c4 {[%clk 0:02:52.5]} 3... e6 {[%clk 0:03:02.3]}
4. Nc3 {[%clk 0:02:53.2]} 4... dxc4 {[%clk 0:03:03.6]} 5. e3 {[%clk 0:02:51.6]}
5... a6 {[%clk 0:03:04.1]} 6. Bxc4 {[%clk 0:02:51.8]} 6... b5 {[%clk 0:03:05.2]}
7. Be2 {[%clk 0:02:51]} 7... Bb7 {[%clk 0:03:06.6]} 8. O-O {[%clk 0:02:51.2]}
8... Nbd7 {[%clk 0:03:08]} 9. Bd2 {[%clk 0:02:47.6]} 9... Bd6 {[%clk 0:03:01.8]}
10. Rc1 {[%clk 0:02:47.8]} 10... O-O {[%clk 0:03:02.1]} 11. Bd3 {[%clk
0:02:48.6]} 11... e5 {[%clk 0:02:59.2]} 12. Bb1 {[%clk 0:02:45.6]} 12... Qe7
{[%clk 0:02:51.8]} 13. dxe5 {[%clk 0:02:41.4]} 13... Nxe5 {[%clk 0:02:52.5]} 14.
Nd4 {[%clk 0:02:38.4]} 14... Neg4 {[%clk 0:02:52.6]} 15. h3 {[%clk 0:02:37.7]}
15... Nh6 {[%clk 0:02:19.7]} 16. Re1 {[%clk 0:02:25.1]} 16... c5 {[%clk
0:02:15.2]} 17. Nf3 {[%clk 0:02:21]} 17... Rad8 {[%clk 0:02:15.6]} 18. Qe2
{[%clk 0:02:19.5]} 18... Bb8 {[%clk 0:02:11.3]} 19. e4 {[%clk 0:02:18.6]} 19...
Rfe8 {[%clk 0:01:55.8]} 20. Bg5 {[%clk 0:02:16.6]} 20... Qf8 {[%clk 0:01:43.4]}
21. Rcd1 {[%clk 0:02:15]} 21... Rxd1 {[%clk 0:01:43.5]} 22. Rxd1 {[%clk
0:02:12.4]} 22... b4 {[%clk 0:01:44.2]} 23. Bxf6 {[%clk 0:02:10.8]} 23... gxf6
{[%clk 0:01:45.1]} 24. Nd5 {[%clk 0:02:10.8]} 24... Qg7 {[%clk 0:01:41.4]} 25.
Qd2 {[%clk 0:02:03.9]} 25... f5 {[%clk 0:01:34]} 26. exf5 {[%clk 0:01:59.7]}
26... f6 {[%clk 0:01:24.8]} 27. Bc2 {[%clk 0:01:56.3]} 27... Kh8 {[%clk
0:01:25.4]} 28. Kf1 {[%clk 0:01:53.1]} 28... Rg8 {[%clk 0:01:19.7]} 29. g3
{[%clk 0:01:47.3]} 29... Bxg3 {[%clk 0:01:10.2]} 30. fxg3 {[%clk 0:01:46.2]}
30... Qxg3 {[%clk 0:01:11.2]} 31. Qf2 {[%clk 0:01:46.1]} 31... Qxh3+ {[%clk
0:01:12.1]} 32. Ke1 {[%clk 0:01:46.3]} 32... Ng4 {[%clk 0:01:06.1]} 33. Qf1
{[%clk 0:01:43.2]} 33... Qg3+ {[%clk 0:01:05.5]} 34. Kd2 {[%clk 0:01:40.2]}
34... Bxd5 {[%clk 0:01:06.1]} 0-1

[Event "*** Titled Tuesday Blitz"]
[Site "Chess.com"]
[Date "2019.03.05"]
[Round "1"]
[White "vgyogi"]
[Black "M1711"]
[Result "0-1"]
[WhiteElo "2104"]
[BlackElo "2513"]
[TimeControl "180+2"]
[EndTime "13:06:52 PST"]
[Termination "M1711 won by resignation"]

1. d4 {[%clk 0:02:54.9]} 1... Nf6 {[%clk 0:03:00.1]} 2. Bg5 {[%clk 0:02:54.4]}
2... d5 {[%clk 0:02:57.3]} 3. e3 {[%clk 0:02:51.6]} 3... c5 {[%clk 0:02:58.2]}
4. c3 {[%clk 0:02:50.2]} 4... Ne4 {[%clk 0:02:43.3]} 5. Bf4 {[%clk 0:02:50.2]}
5... Qb6 {[%clk 0:02:43.9]} 6. Qb3 {[%clk 0:02:37.6]} 6... c4 {[%clk 0:02:43.5]}
7. Qxb6 {[%clk 0:02:38]} 7... axb6 {[%clk 0:02:45.4]} 8. Nd2 {[%clk 0:02:34.4]}
8... Nxd2 {[%clk 0:02:33.2]} 9. Kxd2 {[%clk 0:02:34.9]} 9... b5 {[%clk
0:02:33.6]} 10. a3 {[%clk 0:02:27.1]} 10... Bf5 {[%clk 0:02:31.1]} 11. f3 {[%clk
0:02:26.5]} 11... e6 {[%clk 0:02:29.4]} 12. g4 {[%clk 0:02:25.5]} 12... Bg6
{[%clk 0:02:28.8]} 13. h4 {[%clk 0:02:27.1]} 13... h5 {[%clk 0:02:29.6]} 14. Be2
{[%clk 0:02:13.9]} 14... b4 {[%clk 0:02:27.3]} 15. Bxb8 {[%clk 0:01:54.7]} 15...
bxc3+ {[%clk 0:02:25.5]} 16. Kxc3 {[%clk 0:01:55.1]} 16... Rxb8 {[%clk
0:02:26.2]} 17. Nh3 {[%clk 0:01:52.8]} 17... hxg4 {[%clk 0:02:24.4]} 18. Nf4
{[%clk 0:01:39.7]} 18... Bh7 {[%clk 0:02:20.5]} 19. fxg4 {[%clk 0:01:39]} 19...
Be4 {[%clk 0:02:21.6]} 20. Rh3 {[%clk 0:01:36.4]} 20... b5 {[%clk 0:02:21.4]}
21. b4 {[%clk 0:01:24.2]} 21... Be7 {[%clk 0:02:05.1]} 22. g5 {[%clk 0:01:09]}
22... Ra8 {[%clk 0:01:57.8]} 23. Nh5 {[%clk 0:00:35.8]} 23... g6 {[%clk
0:01:39.8]} 24. Nf6+ {[%clk 0:00:32.2]} 24... Bxf6 {[%clk 0:01:23.4]} 25. gxf6
{[%clk 0:00:33.1]} 25... Bf5 {[%clk 0:01:23.3]} 26. Rhh1 {[%clk 0:00:31.9]}
26... Kd7 {[%clk 0:01:17]} 27. h5 {[%clk 0:00:31.9]} 27... gxh5 {[%clk
0:01:10.3]} 28. Bxh5 {[%clk 0:00:30.1]} 28... Be4 {[%clk 0:01:09.1]} 29. Rh2
{[%clk 0:00:24.1]} 29... Rh6 {[%clk 0:01:08.6]} 0-1

[Event "*** Titled Tuesday Blitz"]
[Site "Chess.com"]
[Date "2019.03.05"]
[Round "1"]
[White "MFguimaraes"]
[Black "Anurag328"]
[Result "0-1"]
[WhiteElo "2308"]
[BlackElo "2684"]
[TimeControl "180+2"]
[EndTime "13:06:55 PST"]
[Termination "Anurag328 won by resignation"]

1. e4 {[%clk 0:02:58.5]} 1... g6 {[%clk 0:03:00.6]} 2. d4 {[%clk 0:02:59]} 2...
Bg7 {[%clk 0:02:59.8]} 3. Nc3 {[%clk 0:03:00.3]} 3... d6 {[%clk 0:03:01.2]} 4.
Nf3 {[%clk 0:02:58.8]} 4... a6 {[%clk 0:03:01.7]} 5. a4 {[%clk 0:02:59.2]} 5...
b6 {[%clk 0:03:03]} 6. Bf4 {[%clk 0:02:57.3]} 6... Bb7 {[%clk 0:03:03.5]} 7. Qd2
{[%clk 0:02:58.7]} 7... Nd7 {[%clk 0:03:03.3]} 8. h4 {[%clk 0:02:55]} 8... h6
{[%clk 0:03:03.5]} 9. Bc4 {[%clk 0:02:48.3]} 9... e6 {[%clk 0:03:04.5]} 10. Ba2
{[%clk 0:02:44.3]} 10... Ne7 {[%clk 0:03:05.8]} 11. d5 {[%clk 0:02:37.9]} 11...
e5 {[%clk 0:03:06.2]} 12. Be3 {[%clk 0:02:28.5]} 12... f5 {[%clk 0:03:07.6]} 13.
exf5 {[%clk 0:02:29.3]} 13... gxf5 {[%clk 0:03:09.5]} 14. g3 {[%clk 0:02:10.9]}
14... Nc5 {[%clk 0:03:08.3]} 15. h5 {[%clk 0:02:06.1]} 15... Qd7 {[%clk
0:02:57.7]} 16. Bc4 {[%clk 0:02:02.9]} 16... Nxa4 {[%clk 0:02:10.5]} 17. Nxa4
{[%clk 0:01:55.6]} 17... b5 {[%clk 0:02:10.7]} 18. Bb3 {[%clk 0:01:56.9]} 18...
bxa4 {[%clk 0:02:09.4]} 19. Bxa4 {[%clk 0:01:58.8]} 19... c6 {[%clk 0:02:11]}
20. dxc6 {[%clk 0:01:54.6]} 20... Bxc6 {[%clk 0:02:12.9]} 21. Bxc6 {[%clk
0:01:51.7]} 21... Qxc6 {[%clk 0:02:14.8]} 22. Qe2 {[%clk 0:01:45.9]} 22... f4
{[%clk 0:02:16.2]} 23. gxf4 {[%clk 0:01:35]} 23... exf4 {[%clk 0:02:18.1]} 24.
Bxf4 {[%clk 0:01:21.3]} 24... O-O {[%clk 0:02:19.3]} 25. Qe6+ {[%clk 0:01:19.6]}
25... Kh8 {[%clk 0:02:20.2]} 26. Bxh6 {[%clk 0:01:16]} 26... Qxf3 {[%clk
0:02:15.9]} 27. Bxg7+ {[%clk 0:01:16.9]} 27... Kxg7 {[%clk 0:02:17.8]} 28. Qxe7+
{[%clk 0:01:15.5]} 28... Kh8 {[%clk 0:02:17.5]} 29. Kd2 {[%clk 0:01:03.5]} 29...
Rae8 {[%clk 0:02:15.1]} 30. Qh4 {[%clk 0:00:53.2]} 30... Rf4 {[%clk 0:01:27.2]}
31. Qg3 {[%clk 0:00:37.9]} 31... Re2+ {[%clk 0:01:22]} 32. Kc1 {[%clk
0:00:37.1]} 32... Qxh1+ {[%clk 0:01:22.7]} 0-1